[Event "*** Titled Tuesday Blitz"]
[Site "Chess.com"]
[Date "2020.05.26"]
[Round "5"]
[White "albano87"]
[Black "PKCLUB"]
[Result "1-0"]
[WhiteElo "2381"]
[BlackElo "2606"]
[TimeControl "180+1"]
[EndTime "10:56:44 PDT"]
[Termination "albano87 won by resignation"]

1. d4 {[%clk 0:03:00.2]} 1... Nf6 {[%clk 0:02:59.2]} 2. Nf3 {[%clk 0:03:01.1]}
2... e6 {[%clk 0:02:59]} 3. g3 {[%clk 0:03:01.6]} 3... b5 {[%clk 0:02:58.6]} 4.
Bg2 {[%clk 0:03:01.3]} 4... d5 {[%clk 0:02:59.2]} 5. O-O {[%clk 0:03:00.4]} 5...
Nbd7 {[%clk 0:02:59.5]} 6. a4 {[%clk 0:02:34]} 6... b4 {[%clk 0:02:58.5]} 7. c4
{[%clk 0:02:23]} 7... bxc3 {[%clk 0:02:56.9]} 8. Nxc3 {[%clk 0:02:20.8]} 8... c5
{[%clk 0:02:52.6]} 9. Bf4 {[%clk 0:02:17.6]} 9... Ba6 {[%clk 0:02:31.4]} 10. Nb5
{[%clk 0:02:16.6]} 10... Bxb5 {[%clk 0:02:31.1]} 11. axb5 {[%clk 0:02:15.4]}
11... Qb6 {[%clk 0:02:27.4]} 12. Qa4 {[%clk 0:02:10.7]} 12... cxd4 {[%clk
0:02:25.7]} 13. Rfc1 {[%clk 0:01:57.7]} 13... Bc5 {[%clk 0:02:23.4]} 14. b4
{[%clk 0:01:43.4]} 14... Be7 {[%clk 0:02:22.4]} 15. Bc7 {[%clk 0:01:37.9]} 15...
Qb7 {[%clk 0:02:20.2]} 16. Nxd4 {[%clk 0:01:37.9]} 16... O-O {[%clk 0:02:14.1]}
17. Nc6 {[%clk 0:01:32.3]} 17... Rfe8 {[%clk 0:02:12.6]} 18. Nxe7+ {[%clk
0:01:26.9]} 18... Rxe7 {[%clk 0:02:12.3]} 19. Qa6 {[%clk 0:01:22.6]} 19... Qxa6
{[%clk 0:02:05.3]} 20. Rxa6 {[%clk 0:01:23.5]} 20... Ree8 {[%clk 0:01:58.6]} 21.
Rca1 {[%clk 0:01:19.2]} 21... Rac8 {[%clk 0:01:11.3]} 22. Rxa7 {[%clk
0:01:11.9]} 22... e5 {[%clk 0:01:10.5]} 23. b6 {[%clk 0:01:09.4]} 23... g5
{[%clk 0:00:54.5]} 24. R1a5 {[%clk 0:01:01.2]} 24... Re6 {[%clk 0:00:43.3]} 25.
Ra8 {[%clk 0:00:57.4]} 25... Rxa8 {[%clk 0:00:41.5]} 26. Rxa8+ {[%clk
0:00:56.9]} 26... Kg7 {[%clk 0:00:42.4]} 27. b7 {[%clk 0:00:53.5]} 27... Rc6
{[%clk 0:00:43]} 28. Rc8 {[%clk 0:00:44.8]} 28... Rc1+ {[%clk 0:00:40.9]} 29.
Bf1 {[%clk 0:00:42.7]} 29... Rb1 {[%clk 0:00:36.6]} 30. Bxe5 {[%clk 0:00:42.4]}
30... Rxb4 {[%clk 0:00:35]} 31. b8=Q {[%clk 0:00:39.4]} 31... Nxb8 {[%clk
0:00:35.1]} 32. Bxb8 {[%clk 0:00:36.4]} 32... Re4 {[%clk 0:00:35.6]} 33. e3
{[%clk 0:00:32.1]} 33... Re7 {[%clk 0:00:34]} 34. Bd6 {[%clk 0:00:25.6]} 34...
Re6 {[%clk 0:00:33.3]} 35. Rd8 {[%clk 0:00:23.8]} 35... Ne4 {[%clk 0:00:31.9]}
36. Bf8+ {[%clk 0:00:23.5]} 36... Kg6 {[%clk 0:00:31.8]} 37. Bd3 {[%clk
0:00:23.9]} 37... f5 {[%clk 0:00:26.7]} 38. Rxd5 {[%clk 0:00:23.3]} 38... Rf6
{[%clk 0:00:26.1]} 39. Bxe4 {[%clk 0:00:22.6]} 39... fxe4 {[%clk 0:00:24.7]} 40.
Be7 {[%clk 0:00:22.5]} 40... Rc6 {[%clk 0:00:24.4]} 41. Rxg5+ {[%clk 0:00:21.9]}
41... Kf7 {[%clk 0:00:25.3]} 42. Bc5 {[%clk 0:00:20.4]} 42... Ra6 {[%clk
0:00:24.6]} 43. Rd5 {[%clk 0:00:20.6]} 43... Ra5 {[%clk 0:00:24.3]} 44. Kg2
{[%clk 0:00:20.7]} 44... Ke6 {[%clk 0:00:24.4]} 45. Rg5 {[%clk 0:00:21]} 45...
h6 {[%clk 0:00:23.5]} 46. Rh5 {[%clk 0:00:20.6]} 46... Kf7 {[%clk 0:00:24.1]}
47. h4 {[%clk 0:00:19.2]} 47... Kg6 {[%clk 0:00:24.3]} 48. Re5 {[%clk
0:00:19.7]} 48... Kf7 {[%clk 0:00:24.9]} 49. Bd4 {[%clk 0:00:20.2]} 49... Ra2
{[%clk 0:00:23.8]} 50. Rxe4 {[%clk 0:00:20.3]} 50... Kg6 {[%clk 0:00:23.3]} 51.
Rf4 {[%clk 0:00:20.6]} 51... Rc2 {[%clk 0:00:22.2]} 52. Kf3 {[%clk 0:00:20.8]}
1-0

[Event "*** Titled Tuesday Blitz"]
[Site "Chess.com"]
[Date "2020.05.26"]
[Round "5"]
[White "ManuDavid2910"]
[Black "Agnes66678"]
[Result "1-0"]
[WhiteElo "2698"]
[BlackElo "2472"]
[TimeControl "180+1"]
[EndTime "10:56:50 PDT"]
[Termination "ManuDavid2910 won by resignation"]

1. e4 {[%clk 0:03:00.9]} 1... d6 {[%clk 0:02:56.8]} 2. Nf3 {[%clk 0:03:00.2]}
2... e5 {[%clk 0:02:56.2]} 3. Nc3 {[%clk 0:03:01.1]} 3... Nf6 {[%clk 0:02:55.9]}
4. d4 {[%clk 0:03:01.1]} 4... Nbd7 {[%clk 0:02:56.3]} 5. Bc4 {[%clk 0:03:00.8]}
5... Be7 {[%clk 0:02:55.9]} 6. O-O {[%clk 0:03:00.8]} 6... O-O {[%clk
0:02:55.5]} 7. Re1 {[%clk 0:03:01.2]} 7... c6 {[%clk 0:02:55.4]} 8. Bb3 {[%clk
0:03:01.1]} 8... a5 {[%clk 0:02:52.9]} 9. a4 {[%clk 0:03:01]} 9... h6 {[%clk
0:02:52.4]} 10. h3 {[%clk 0:03:01]} 10... Re8 {[%clk 0:02:52]} 11. Be3 {[%clk
0:02:59.1]} 11... Qc7 {[%clk 0:02:51.6]} 12. Qd2 {[%clk 0:02:58.7]} 12... Bf8
{[%clk 0:02:51.6]} 13. Rad1 {[%clk 0:02:58.3]} 13... exd4 {[%clk 0:02:47.4]} 14.
Nxd4 {[%clk 0:02:59.2]} 14... Nc5 {[%clk 0:02:47.3]} 15. f3 {[%clk 0:02:57.9]}
15... Nxb3 {[%clk 0:02:46.4]} 16. Nxb3 {[%clk 0:02:58.8]} 16... Be6 {[%clk
0:02:45.7]} 17. Nd4 {[%clk 0:02:57.5]} 17... Rad8 {[%clk 0:02:44.7]} 18. Bf4
{[%clk 0:02:57.4]} 18... Qb6 {[%clk 0:02:41.8]} 19. b3 {[%clk 0:02:57.4]} 19...
Nd7 {[%clk 0:02:31.9]} 20. Kh2 {[%clk 0:02:56.1]} 20... Nc5 {[%clk 0:02:31.8]}
21. Be3 {[%clk 0:02:55.8]} 21... Qc7 {[%clk 0:02:30.5]} 22. Kg1 {[%clk
0:02:55.6]} 22... Bc8 {[%clk 0:02:24.1]} 23. Qf2 {[%clk 0:02:53.2]} 23... g6
{[%clk 0:02:18.3]} 24. Qg3 {[%clk 0:02:51.3]} 24... Bg7 {[%clk 0:02:16.6]} 25.
Nce2 {[%clk 0:02:49.2]} 25... Ne6 {[%clk 0:02:14]} 26. Nxe6 {[%clk 0:02:43]}
26... Bxe6 {[%clk 0:02:14.9]} 27. Nf4 {[%clk 0:02:42.5]} 27... d5 {[%clk
0:02:07.8]} 28. Qf2 {[%clk 0:02:36.1]} 28... d4 {[%clk 0:02:03]} 29. Nxe6 {[%clk
0:02:34.5]} 29... dxe3 {[%clk 0:01:59.4]} 30. Nxc7 {[%clk 0:02:32]} 30... exf2+
{[%clk 0:01:58.9]} 31. Kxf2 {[%clk 0:02:32.9]} 31... Rxd1 {[%clk 0:01:56.1]} 32.
Rxd1 {[%clk 0:02:32.4]} 32... Rc8 {[%clk 0:01:55.4]} 33. Rd7 {[%clk 0:02:22.2]}
33... Be5 {[%clk 0:01:54.5]} 34. Ne8 {[%clk 0:02:03.5]} 34... Rxe8 {[%clk
0:01:51.1]} 35. Rxb7 {[%clk 0:02:04]} 35... Bc3 {[%clk 0:01:46.8]} 36. Rc7
{[%clk 0:02:00.5]} 36... Bd4+ {[%clk 0:01:43.9]} 37. Ke2 {[%clk 0:02:00.2]}
37... c5 {[%clk 0:01:44]} 38. Kd3 {[%clk 0:01:58.2]} 38... Rd8 {[%clk
0:01:39.4]} 39. Kc4 {[%clk 0:01:57.8]} 39... Ra8 {[%clk 0:01:30]} 40. f4 {[%clk
0:01:50.9]} 40... Be3 {[%clk 0:01:26.2]} 41. g3 {[%clk 0:01:50.7]} 41... h5
{[%clk 0:01:24.1]} 42. e5 {[%clk 0:01:47.7]} 42... h4 {[%clk 0:01:18.4]} 43.
gxh4 {[%clk 0:01:44.4]} 43... Kf8 {[%clk 0:01:14.5]} 44. Kd5 {[%clk 0:01:39.6]}
44... Ra6 {[%clk 0:01:13.3]} 45. Ke4 {[%clk 0:01:38.9]} 45... Bf2 {[%clk
0:01:10]} 46. h5 {[%clk 0:01:38.8]} 46... gxh5 {[%clk 0:01:08.6]} 47. f5 {[%clk
0:01:38.7]} 47... Rb6 {[%clk 0:01:05.2]} 48. f6 {[%clk 0:01:37.6]} 48... Ke8
{[%clk 0:01:03.2]} 49. Re7+ {[%clk 0:01:36.3]} 49... Kf8 {[%clk 0:01:02.8]} 50.
Ra7 {[%clk 0:01:36.3]} 50... Kg8 {[%clk 0:01:00.6]} 51. Rxa5 {[%clk 0:01:34.9]}
51... Re6 {[%clk 0:01:00]} 52. c3 {[%clk 0:01:32.6]} 52... Bg3 {[%clk
0:00:59.3]} 53. Rxc5 {[%clk 0:01:32.2]} 53... Kh7 {[%clk 0:00:59.2]} 54. a5
{[%clk 0:01:30.1]} 54... Kg6 {[%clk 0:00:58.3]} 55. b4 {[%clk 0:01:30.2]} 55...
Bf2 {[%clk 0:00:57.9]} 56. Rd5 {[%clk 0:01:28.3]} 56... Kg5 {[%clk 0:00:55.6]}
57. b5 {[%clk 0:01:27.8]} 57... Kh4 {[%clk 0:00:55.4]} 58. b6 {[%clk 0:01:19.7]}
58... Kxh3 {[%clk 0:00:53.4]} 59. b7 {[%clk 0:01:17.3]} 59... Re8 {[%clk
0:00:51.9]} 60. c4 {[%clk 0:01:15.1]} 60... Kg2 {[%clk 0:00:51.7]} 61. Rd7
{[%clk 0:01:09.8]} 61... h4 {[%clk 0:00:51.3]} 62. Rxf7 {[%clk 0:01:09.6]} 62...
h3 {[%clk 0:00:51.3]} 63. Rg7+ {[%clk 0:01:08.6]} 63... Bg3 {[%clk 0:00:50.3]}
64. f7 {[%clk 0:00:58.1]} 64... Rb8 {[%clk 0:00:40.8]} 65. a6 {[%clk 0:00:52.4]}
65... h2 {[%clk 0:00:39.9]} 66. Rh7 {[%clk 0:00:52.4]} 66... Bf2 {[%clk
0:00:37.8]} 67. e6 {[%clk 0:00:49.8]} 67... h1=Q {[%clk 0:00:31.2]} 68. Rxh1
{[%clk 0:00:48.9]} 68... Kxh1 {[%clk 0:00:32.1]} 69. e7 {[%clk 0:00:49]} 1-0

[Event "*** Titled Tuesday Blitz"]
[Site "Chess.com"]
[Date "2020.05.26"]
[Round "5"]
[White "MidnightFox"]
[Black "vinniethepooh"]
[Result "0-1"]
[WhiteElo "2401"]
[BlackElo "2569"]
[TimeControl "180+1"]
[EndTime "10:56:51 PDT"]
[Termination "vinniethepooh won by checkmate"]

1. e4 {[%clk 0:03:00.9]} 1... c5 {[%clk 0:03:00.1]} 2. Nf3 {[%clk 0:02:57.7]}
2... d6 {[%clk 0:03:00.3]} 3. Bb5+ {[%clk 0:02:56.8]} 3... Nd7 {[%clk
0:03:00.1]} 4. Ba4 {[%clk 0:02:57.2]} 4... a6 {[%clk 0:02:59.3]} 5. c4 {[%clk
0:02:56.3]} 5... Nf6 {[%clk 0:02:59.2]} 6. Nc3 {[%clk 0:02:54.1]} 6... e5 {[%clk
0:02:59.7]} 7. d3 {[%clk 0:02:53.5]} 7... Be7 {[%clk 0:02:59.5]} 8. O-O {[%clk
0:02:53]} 8... O-O {[%clk 0:02:59.2]} 9. Ne1 {[%clk 0:02:50.1]} 9... Nb8 {[%clk
0:02:46.3]} 10. g3 {[%clk 0:02:48.5]} 10... Nc6 {[%clk 0:02:45.9]} 11. f4 {[%clk
0:02:48]} 11... Nd4 {[%clk 0:02:34.5]} 12. Be3 {[%clk 0:02:43.7]} 12... Rb8
{[%clk 0:02:28.7]} 13. Bxd4 {[%clk 0:02:40.3]} 13... cxd4 {[%clk 0:02:26.3]} 14.
Nd5 {[%clk 0:02:36.5]} 14... Nxd5 {[%clk 0:02:25.5]} 15. cxd5 {[%clk 0:02:37.4]}
15... f5 {[%clk 0:02:20.2]} 16. Bc2 {[%clk 0:02:27.3]} 16... Qb6 {[%clk
0:02:09.6]} 17. Bb3 {[%clk 0:02:09.1]} 17... fxe4 {[%clk 0:01:23.6]} 18. dxe4
{[%clk 0:02:10]} 18... Bh3 {[%clk 0:01:15.7]} 19. Rf2 {[%clk 0:02:07.1]} 19...
exf4 {[%clk 0:01:13.6]} 20. Qh5 {[%clk 0:01:44.7]} 20... fxg3 {[%clk 0:00:53.9]}
21. Rxf8+ {[%clk 0:01:42.9]} 21... Rxf8 {[%clk 0:00:54.8]} 22. Qxh3 {[%clk
0:01:36.4]} 22... d3+ {[%clk 0:00:49.1]} 23. Kh1 {[%clk 0:01:32.8]} 23... d2
{[%clk 0:00:47.7]} 24. Ng2 {[%clk 0:00:53.3]} 24... Qf2 {[%clk 0:00:28.1]} 25.
Rg1 {[%clk 0:00:50]} 25... gxh2 {[%clk 0:00:20.8]} 26. Kxh2 {[%clk 0:00:38]}
26... Rf6 {[%clk 0:00:17.3]} 27. Bd1 {[%clk 0:00:22.5]} 27... Rh6 {[%clk
0:00:12.9]} 28. Bh5 {[%clk 0:00:22.4]} 28... g6 {[%clk 0:00:11]} 29. Qe6+ {[%clk
0:00:10.6]} 29... Kf8 {[%clk 0:00:11.1]} 30. Qc8+ {[%clk 0:00:09.4]} 30... Kg7
{[%clk 0:00:05.2]} 31. Qg4 {[%clk 0:00:09]} 31... Rxh5+ {[%clk 0:00:04.8]} 32.
Qxh5 {[%clk 0:00:09.4]} 32... gxh5 {[%clk 0:00:05.7]} 33. Kh3 {[%clk 0:00:09.8]}
33... Bg5 {[%clk 0:00:05.6]} 34. Rd1 {[%clk 0:00:08.5]} 34... Kh6 {[%clk
0:00:05.4]} 35. Kh2 {[%clk 0:00:08.6]} 35... Bf4+ {[%clk 0:00:05.1]} 36. Kh1
{[%clk 0:00:07.1]} 36... Qf3 {[%clk 0:00:05.3]} 37. Ra1 {[%clk 0:00:05.2]} 37...
d1=Q+ {[%clk 0:00:05.5]} 38. Rxd1 {[%clk 0:00:04.6]} 38... Qxd1+ {[%clk
0:00:06.4]} 39. Ne1 {[%clk 0:00:05.4]} 39... Qxe1+ {[%clk 0:00:06.8]} 40. Kg2
{[%clk 0:00:06.3]} 40... Qe2+ {[%clk 0:00:07.7]} 41. Kh3 {[%clk 0:00:07.2]}
41... Qf3+ {[%clk 0:00:07.9]} 42. Kh4 {[%clk 0:00:06.8]} 42... Qg4# {[%clk
0:00:08.8]} 0-1

[Event "*** Titled Tuesday Blitz"]
[Site "Chess.com"]
[Date "2020.05.26"]
[Round "5"]
[White "lucliasco"]
[Black "eljanov"]
[Result "1-0"]
[WhiteElo "2706"]
[BlackElo "2866"]
[TimeControl "180+1"]
[EndTime "10:56:52 PDT"]
[Termination "lucliasco won on time"]

1. d4 {[%clk 0:03:00.9]} 1... Nf6 {[%clk 0:02:59.6]} 2. Nf3 {[%clk 0:03:00.7]}
2... e6 {[%clk 0:02:59.3]} 3. e3 {[%clk 0:03:00.5]} 3... b6 {[%clk 0:02:57.4]}
4. Bd3 {[%clk 0:03:01.1]} 4... Bb7 {[%clk 0:02:57.5]} 5. O-O {[%clk 0:03:00.6]}
5... c5 {[%clk 0:02:57.9]} 6. b3 {[%clk 0:02:59.7]} 6... Nc6 {[%clk 0:02:49.2]}
7. Bb2 {[%clk 0:03:00.1]} 7... Be7 {[%clk 0:02:46]} 8. Nbd2 {[%clk 0:02:59.8]}
8... O-O {[%clk 0:02:45.1]} 9. a3 {[%clk 0:02:59.1]} 9... d5 {[%clk 0:02:33]}
10. Ne5 {[%clk 0:02:52.1]} 10... Rc8 {[%clk 0:02:15.3]} 11. f4 {[%clk 0:02:48]}
11... Na5 {[%clk 0:01:54.3]} 12. Qe2 {[%clk 0:02:30]} 12... Ne4 {[%clk
0:01:47.9]} 13. Rad1 {[%clk 0:02:23.2]} 13... f6 {[%clk 0:01:38.5]} 14. Nef3
{[%clk 0:01:56]} 14... Qe8 {[%clk 0:01:17.9]} 15. c4 {[%clk 0:01:46.4]} 15...
Qf7 {[%clk 0:01:09.7]} 16. cxd5 {[%clk 0:01:43.5]} 16... exd5 {[%clk 0:01:05.8]}
17. dxc5 {[%clk 0:01:35.6]} 17... bxc5 {[%clk 0:00:55.4]} 18. Ba6 {[%clk
0:01:35.3]} 18... Nxd2 {[%clk 0:00:48.8]} 19. Nxd2 {[%clk 0:01:31.3]} 19... Rfd8
{[%clk 0:00:36.7]} 20. Bc3 {[%clk 0:01:22.6]} 20... Bxa6 {[%clk 0:00:34.5]} 21.
Qxa6 {[%clk 0:01:21.6]} 21... Nc6 {[%clk 0:00:35]} 22. Nf3 {[%clk 0:01:16.9]}
22... Bf8 {[%clk 0:00:32.5]} 23. Rfe1 {[%clk 0:01:16.7]} 23... Qe6 {[%clk
0:00:23.1]} 24. b4 {[%clk 0:01:11.9]} 24... cxb4 {[%clk 0:00:17.2]} 25. Bxb4
{[%clk 0:01:05.8]} 25... Rb8 {[%clk 0:00:09.8]} 26. Bxf8 {[%clk 0:01:00.9]}
26... Kxf8 {[%clk 0:00:10.7]} 27. h3 {[%clk 0:00:56.7]} 27... Rb6 {[%clk
0:00:10.7]} 28. Qd3 {[%clk 0:00:55.1]} 28... Kg8 {[%clk 0:00:10.2]} 29. Kh2
{[%clk 0:00:51.1]} 29... Rb2 {[%clk 0:00:09.6]} 30. Nd4 {[%clk 0:00:49]} 30...
Nxd4 {[%clk 0:00:08.6]} 31. Qxd4 {[%clk 0:00:49.6]} 31... Rc2 {[%clk 0:00:05.8]}
32. e4 {[%clk 0:00:46.4]} 32... Qb6 {[%clk 0:00:03.7]} 33. exd5 {[%clk
0:00:40.7]} 33... Qxd4 {[%clk 0:00:03.2]} 34. Rxd4 {[%clk 0:00:41.6]} 34... Rd7
{[%clk 0:00:03.2]} 35. d6 {[%clk 0:00:38.5]} 35... Kf7 {[%clk 0:00:03.6]} 36. f5
{[%clk 0:00:39]} 36... Rc6 {[%clk 0:00:03.6]} 37. Re6 {[%clk 0:00:38.3]} 37...
h5 {[%clk 0:00:03.8]} 38. a4 {[%clk 0:00:31.7]} 38... a6 {[%clk 0:00:01.8]} 39.
Kg3 {[%clk 0:00:28.4]} 39... Rc5 {[%clk 0:00:02.3]} 40. Kf4 {[%clk 0:00:27]}
40... Rc2 {[%clk 0:00:02.5]} 41. Ke4 {[%clk 0:00:24.8]} 41... Rxg2 {[%clk
0:00:02]} 42. Kd5 {[%clk 0:00:23.2]} 42... Rc2 {[%clk 0:00:02.7]} 43. Rc4 {[%clk
0:00:22.9]} 43... Rxc4 {[%clk 0:00:02.8]} 44. Kxc4 {[%clk 0:00:22.4]} 44... g6
{[%clk 0:00:03.5]} 45. Kd5 {[%clk 0:00:17]} 45... gxf5 {[%clk 0:00:03.8]} 46.
Re1 {[%clk 0:00:17.9]} 1-0

[Event "*** Titled Tuesday Blitz"]
[Site "Chess.com"]
[Date "2020.05.26"]
[Round "5"]
[White "Onischuk_V"]
[Black "BogdanBelyakov89"]
[Result "1-0"]
[WhiteElo "2886"]
[BlackElo "2630"]
[TimeControl "180+1"]
[EndTime "10:56:52 PDT"]
[Termination "Onischuk_V won by checkmate"]

1. e4 {[%clk 0:02:59.7]} 1... e5 {[%clk 0:03:00.1]} 2. Nf3 {[%clk 0:02:59.8]}
2... Nc6 {[%clk 0:03:00.5]} 3. Bc4 {[%clk 0:03:00.5]} 3... Bc5 {[%clk
0:03:00.1]} 4. d3 {[%clk 0:03:00.4]} 4... Nf6 {[%clk 0:02:59.9]} 5. O-O {[%clk
0:03:01.1]} 5... O-O {[%clk 0:02:59.9]} 6. Nbd2 {[%clk 0:03:01.6]} 6... a5
{[%clk 0:02:56.6]} 7. c3 {[%clk 0:03:01.2]} 7... d6 {[%clk 0:02:53]} 8. h3
{[%clk 0:03:00.7]} 8... Be6 {[%clk 0:02:50.8]} 9. Bb5 {[%clk 0:02:50.1]} 9... h6
{[%clk 0:02:32.6]} 10. Re1 {[%clk 0:02:49.4]} 10... Bb6 {[%clk 0:02:12.9]} 11.
Nf1 {[%clk 0:02:47.6]} 11... Ne7 {[%clk 0:02:12.7]} 12. Ng3 {[%clk 0:02:46.1]}
12... Ng6 {[%clk 0:02:12.6]} 13. d4 {[%clk 0:02:44]} 13... c6 {[%clk 0:02:04.3]}
14. Bd3 {[%clk 0:02:43.5]} 14... Re8 {[%clk 0:02:03.4]} 15. Be3 {[%clk
0:02:40.1]} 15... a4 {[%clk 0:02:00.3]} 16. Qd2 {[%clk 0:02:37.5]} 16... a3
{[%clk 0:01:40.2]} 17. b3 {[%clk 0:02:34.9]} 17... Ba5 {[%clk 0:01:31.3]} 18.
Rad1 {[%clk 0:02:31.8]} 18... b5 {[%clk 0:01:15.4]} 19. Qc1 {[%clk 0:02:27.2]}
19... Qb8 {[%clk 0:01:14]} 20. Bb1 {[%clk 0:02:18.8]} 20... Bb6 {[%clk
0:01:03.5]} 21. Bxh6 {[%clk 0:02:11.6]} 21... gxh6 {[%clk 0:00:59.4]} 22. Qxh6
{[%clk 0:02:11]} 22... Rd8 {[%clk 0:00:25]} 23. Nf5 {[%clk 0:02:09]} 23... Bxf5
{[%clk 0:00:21.8]} 24. exf5 {[%clk 0:02:09.2]} 24... Qc7 {[%clk 0:00:12.4]} 25.
fxg6 {[%clk 0:02:04.9]} 25... fxg6 {[%clk 0:00:12.7]} 26. Qxg6+ {[%clk
0:01:56.7]} 26... Qg7 {[%clk 0:00:12.6]} 27. Qxg7+ {[%clk 0:01:52.9]} 27... Kxg7
{[%clk 0:00:13.5]} 28. dxe5 {[%clk 0:01:53.2]} 28... Nd5 {[%clk 0:00:13.6]} 29.
Rc1 {[%clk 0:01:51.3]} 29... dxe5 {[%clk 0:00:12.4]} 30. Nxe5 {[%clk 0:01:50.3]}
30... Re8 {[%clk 0:00:12.3]} 31. g3 {[%clk 0:01:44.8]} 31... Re6 {[%clk
0:00:09.8]} 32. Kg2 {[%clk 0:01:43.7]} 32... Rae8 {[%clk 0:00:09]} 33. f4 {[%clk
0:01:43.3]} 33... Ba5 {[%clk 0:00:04.2]} 34. b4 {[%clk 0:01:30.7]} 34... Bc7
{[%clk 0:00:04.2]} 35. Be4 {[%clk 0:01:22.7]} 35... Bxe5 {[%clk 0:00:03.5]} 36.
Bxd5 {[%clk 0:01:22.7]} 36... cxd5 {[%clk 0:00:04]} 37. Rxe5 {[%clk 0:01:22]}
37... Rxe5 {[%clk 0:00:04.9]} 38. fxe5 {[%clk 0:01:22.3]} 38... Rxe5 {[%clk
0:00:05.8]} 39. Kf3 {[%clk 0:01:22]} 39... Re4 {[%clk 0:00:05.8]} 40. Rd1 {[%clk
0:01:19.5]} 40... Rc4 {[%clk 0:00:06.1]} 41. Rd3 {[%clk 0:01:19.2]} 41... Kf6
{[%clk 0:00:05.9]} 42. Ke3 {[%clk 0:01:18.5]} 42... Ke5 {[%clk 0:00:06.3]} 43.
Kd2 {[%clk 0:01:18.6]} 43... Kd6 {[%clk 0:00:05.7]} 44. Kc2 {[%clk 0:01:16.2]}
44... Re4 {[%clk 0:00:05.8]} 45. Kb3 {[%clk 0:01:16.1]} 45... Re2 {[%clk
0:00:05.7]} 46. Kxa3 {[%clk 0:01:16]} 46... Rh2 {[%clk 0:00:05.6]} 47. h4 {[%clk
0:01:15.2]} 47... Rg2 {[%clk 0:00:05.6]} 48. Kb3 {[%clk 0:01:15.2]} 48... Ke5
{[%clk 0:00:06.1]} 49. Re3+ {[%clk 0:01:15.4]} 49... Kf5 {[%clk 0:00:06.5]} 50.
a4 {[%clk 0:01:15.5]} 50... bxa4+ {[%clk 0:00:06.1]} 51. Kxa4 {[%clk 0:01:15.6]}
51... Rc2 {[%clk 0:00:05.2]} 52. Kb5 {[%clk 0:01:14.6]} 52... Rd2 {[%clk
0:00:04.9]} 53. Kc5 {[%clk 0:01:14.6]} 53... Kg4 {[%clk 0:00:05.1]} 54. b5
{[%clk 0:01:14.7]} 54... Rd1 {[%clk 0:00:05.4]} 55. b6 {[%clk 0:01:14.9]} 55...
Rd2 {[%clk 0:00:05.9]} 56. b7 {[%clk 0:01:14.8]} 56... Rb2 {[%clk 0:00:06.2]}
57. Kc6 {[%clk 0:01:15.3]} 57... Rb3 {[%clk 0:00:06.1]} 58. Kc7 {[%clk
0:01:14.6]} 58... Kh3 {[%clk 0:00:06.3]} 59. b8=Q {[%clk 0:01:13.6]} 59... d4
{[%clk 0:00:07.2]} 60. Qxb3 {[%clk 0:01:11.6]} 60... dxe3 {[%clk 0:00:08.1]} 61.
h5 {[%clk 0:01:06.9]} 61... e2 {[%clk 0:00:08.1]} 62. Qb1 {[%clk 0:01:06.5]}
62... Kg2 {[%clk 0:00:08]} 63. Qe1 {[%clk 0:01:06.2]} 63... Kf3 {[%clk 0:00:08]}
64. h6 {[%clk 0:01:06.5]} 64... Ke3 {[%clk 0:00:08.2]} 65. h7 {[%clk 0:01:06.8]}
65... Kd3 {[%clk 0:00:09]} 66. h8=Q {[%clk 0:01:06.6]} 66... Ke3 {[%clk
0:00:09.5]} 67. Qe5+ {[%clk 0:01:05.2]} 67... Kf3 {[%clk 0:00:10.4]} 68. Q1xe2#
{[%clk 0:01:05.2]} 1-0

[Event "*** Titled Tuesday Blitz"]
[Site "Chess.com"]
[Date "2020.05.26"]
[Round "5"]
[White "aleksandrovaleksei"]
[Black "CyberneticLion"]
[Result "1-0"]
[WhiteElo "2678"]
[BlackElo "2442"]
[TimeControl "180+1"]
[EndTime "10:56:53 PDT"]
[Termination "aleksandrovaleksei won by resignation"]

1. d4 {[%clk 0:03:00.9]} 1... d5 {[%clk 0:02:58.4]} 2. c4 {[%clk 0:02:59.5]}
2... e6 {[%clk 0:02:58.3]} 3. Nc3 {[%clk 0:02:58.8]} 3... Nf6 {[%clk 0:02:57.4]}
4. cxd5 {[%clk 0:02:55]} 4... exd5 {[%clk 0:02:57.2]} 5. Bg5 {[%clk 0:02:54.6]}
5... Be7 {[%clk 0:02:50.4]} 6. e3 {[%clk 0:02:51]} 6... c6 {[%clk 0:02:45.7]} 7.
Bd3 {[%clk 0:02:50.6]} 7... h6 {[%clk 0:02:43.4]} 8. Bh4 {[%clk 0:02:49.8]} 8...
Ne4 {[%clk 0:02:41.6]} 9. Bxe7 {[%clk 0:02:44.4]} 9... Qxe7 {[%clk 0:02:42.5]}
10. Bxe4 {[%clk 0:02:44.4]} 10... dxe4 {[%clk 0:02:42.5]} 11. Nge2 {[%clk
0:02:42.6]} 11... Bf5 {[%clk 0:02:35.6]} 12. Ng3 {[%clk 0:02:30.4]} 12... Bg6
{[%clk 0:02:35.1]} 13. Qg4 {[%clk 0:02:27.1]} 13... Na6 {[%clk 0:02:12.6]} 14.
Ngxe4 {[%clk 0:02:18.2]} 14... h5 {[%clk 0:01:46.2]} 15. Qg5 {[%clk 0:02:02.6]}
15... Qxg5 {[%clk 0:01:30]} 16. Nxg5 {[%clk 0:02:02.3]} 16... O-O-O {[%clk
0:01:23.8]} 17. O-O {[%clk 0:02:01.7]} 17... Rhe8 {[%clk 0:01:17.4]} 18. Rfd1
{[%clk 0:01:44.7]} 18... f6 {[%clk 0:01:13.5]} 19. Nf3 {[%clk 0:01:44.1]} 19...
Nb4 {[%clk 0:01:08]} 20. a3 {[%clk 0:01:37.5]} 20... Nd5 {[%clk 0:01:02.4]} 21.
Rac1 {[%clk 0:01:33.9]} 21... Bf5 {[%clk 0:00:51.9]} 22. Nxd5 {[%clk 0:01:13.2]}
22... Rxd5 {[%clk 0:00:52.8]} 23. Rc3 {[%clk 0:01:13.1]} 23... Bg4 {[%clk
0:00:50.2]} 24. Rdc1 {[%clk 0:01:08.9]} 24... Bxf3 {[%clk 0:00:46.9]} 25. gxf3
{[%clk 0:01:09]} 25... f5 {[%clk 0:00:42.3]} 26. f4 {[%clk 0:00:55.3]} 26... Re6
{[%clk 0:00:39.9]} 27. Rc5 {[%clk 0:00:54.9]} 27... Kd7 {[%clk 0:00:34.9]} 28.
Rxd5+ {[%clk 0:00:54]} 28... cxd5 {[%clk 0:00:35.8]} 29. Rc5 {[%clk 0:00:53.4]}
29... Kd6 {[%clk 0:00:35.9]} 30. Rc8 {[%clk 0:00:51.2]} 30... Rg6+ {[%clk
0:00:34.6]} 31. Kf1 {[%clk 0:00:50.9]} 31... Kd7 {[%clk 0:00:29]} 32. Rf8 {[%clk
0:00:47.9]} 32... Ke7 {[%clk 0:00:26.5]} 33. Rg8 {[%clk 0:00:40.4]} 33... Kf7
{[%clk 0:00:19.8]} 34. Rd8 {[%clk 0:00:37.4]} 34... Rb6 {[%clk 0:00:20.1]} 35.
Rxd5 {[%clk 0:00:35.9]} 35... Rxb2 {[%clk 0:00:20.1]} 36. Rxf5+ {[%clk 0:00:36]}
36... Kg6 {[%clk 0:00:19.2]} 37. Ra5 {[%clk 0:00:33.9]} 37... a6 {[%clk
0:00:18]} 38. h4 {[%clk 0:00:32.5]} 38... Kf6 {[%clk 0:00:17.8]} 39. Rxh5 {[%clk
0:00:30.9]} 39... b6 {[%clk 0:00:15.7]} 40. Rd5 {[%clk 0:00:29.2]} 40... Rb3
{[%clk 0:00:12.9]} 41. a4 {[%clk 0:00:28.7]} 41... Ke6 {[%clk 0:00:09]} 42. Re5+
{[%clk 0:00:25.7]} 42... Kd6 {[%clk 0:00:08.3]} 43. Rg5 {[%clk 0:00:25.6]} 43...
Ra3 {[%clk 0:00:08]} 44. Rxg7 {[%clk 0:00:22.3]} 44... Rxa4 {[%clk 0:00:07.7]}
45. h5 {[%clk 0:00:22.3]} 45... Ra5 {[%clk 0:00:07.1]} 46. Rg5 {[%clk
0:00:21.7]} 46... Ra1+ {[%clk 0:00:03]} 47. Kg2 {[%clk 0:00:21.4]} 47... Rc1
{[%clk 0:00:02.2]} 48. Rg6+ {[%clk 0:00:21]} 48... Kd7 {[%clk 0:00:01.2]} 1-0